Workbook

Sheet 1
A1: 356
A2: DEMAND NO. 35
A3: FISHERIES
A4: Abstract Schedule for Object Headwise Expenditure
P5: (` in lakhs)
A6: Actual | D6: Budget Estimates | G6: Revised Estiamtes | J6: Object Head of Account | M6: Budget Estimate
A7: 2011-2012 | D7: 2012-2013 | G7: 2012-2013 | M7: 2013-2014
A8: Non-Plan | B8: Plan | C8: CSS/NEA/ NLCPR | D8: Non-Plan | E8: Plan | F8: CSS/NEA/NLCPR | G8: Non-Plan | H8: Plan | I8: CSS/NEA/NLCPR | M8: Non-Plan | N8: Plan | O8: CSS/NEA/NLCPR | P8: Total
A9: ='2'!A10 -> 373.54 | B9: ='2'!B10 -> 30 | C9: ='2'!C10 -> 0 | D9: ='2'!D10 -> 471 | E9: ='2'!E10 -> 27 | F9: ='2'!F10 -> 0 | G9: ='2'!G10 -> 471 | H9: ='2'!H10 -> 27 | I9: ='2'!I10 -> 16.73 | J9: (01) | K9: - | L9: Salaries | M9: ='2'!M10 -> 502 | N9: ='2'!N10 -> 65 | O9: ='2'!O10 -> 0 | P9: =SUM(M9:O9) -> 567
A10: ='2'!A11 -> 0.35 | B10: ='2'!B11 -> 19.43 | C10: ='2'!C11 -> 0 | D10: ='2'!D11 -> 0 | E10: ='2'!E11 -> 22 | F10: ='2'!F11 -> 0 | G10: ='2'!G11 -> 0 | H10: ='2'!H11 -> 22 | I10: ='2'!I11 -> 0 | J10: (02) | K10: - | L10: Wages | M10: ='2'!M11 -> 0 | N10: ='2'!N11 -> 32 | O10: ='2'!O11 -> 0 | P10: =SUM(M10:O10) -> 32
J11: (04) | K11: - | L11: Pensionery Charges
A12: ='2'!A12 -> 27.38 | B12: ='2'!B12 -> 4.93 | C12: ='2'!C12 -> 0 | D12: ='2'!D12 -> 11.15 | E12: ='2'!E12 -> 3 | F12: ='2'!F12 -> 0 | G12: ='2'!G12 -> 29 | H12: ='2'!H12 -> 3 | I12: ='2'!I12 -> 0 | J12: (06) | K12: - | L12: Medical Treatment | M12: ='2'!M12 -> 13.5 | N12: ='2'!N12 -> 2 | O12: ='2'!O12 -> 0 | P12: 15.5
A13: ='2'!A13 -> 0.2 | B13: ='2'!B13 -> 27.98 | C13: ='2'!C13 -> 0 | D13: ='2'!D13 -> 0.5 | E13: ='2'!E13 -> 10 | F13: ='2'!F13 -> 0 | G13: ='2'!G13 -> 0.5 | H13: ='2'!H13 -> 10 | I13: ='2'!I13 -> 1 | J13: (11) | K13: - | L13: Domestic Travelling Expenses | M13: ='2'!M13 -> 0.5 | N13: ='2'!N13 -> 8 | O13: ='2'!O13 -> 0 | P13: 8.5
J14: (12) | K14: - | L14: Travelling Abroad
A15: ='2'!A14 -> 4 | B15: ='2'!B14 -> 37 | C15: ='2'!C14 -> 0 | D15: ='2'!D14 -> 4 | E15: ='2'!E14 -> 13 | F15: ='2'!F14 -> 0 | G15: ='2'!G14 -> 4 | H15: ='2'!H14 -> 13 | I15: ='2'!I14 -> 0.3 | J15: (13) | K15: - | L15: Office Expenses | M15: ='2'!M14 -> 4 | N15: ='2'!N14 -> 9 | O15: ='2'!O14 -> 0 | P15: 13
A16: ='2'!A15 -> 0 | B16: ='2'!B15 -> 6.42 | C16: ='2'!C15 -> 0 | D16: ='2'!D15 -> 0 | E16: ='2'!E15 -> 6 | F16: ='2'!F15 -> 0 | G16: ='2'!G15 -> 0 | H16: ='2'!H15 -> 6 | I16: ='2'!I15 -> 0 | J16: (14) | K16: - | L16: Rent, Rates & Taxes | M16: ='2'!M15 -> 0 | N16: ='2'!N15 -> 10 | O16: ='2'!O15 -> 0 | P16: 10
A17: ='2'!A16 -> 0 | B17: ='2'!B16 -> 2.06 | C17: ='2'!C16 -> 0 | D17: ='2'!D16 -> 0 | E17: ='2'!E16 -> 0.5 | F17: ='2'!F16 -> 0 | G17: ='2'!G16 -> 0 | H17: ='2'!H16 -> 0.5 | I17: ='2'!I16 -> 0 | J17: (16) | K17: - | L17: Publication | M17: ='2'!M16 -> 0 | N17: ='2'!N16 -> 1 | O17: ='2'!O16 -> 0 | P17: 1
J18: (20) | K18: - | L18: Other Administrative Expenses
A19: ='2'!A17 -> 0 | B19: ='2'!B17 -> 238 | C19: ='2'!C17 -> 0 | D19: ='2'!D17 -> 0 | E19: ='2'!E17 -> 456.5 | F19: ='2'!F17 -> 47 | G19: ='2'!G17 -> 0 | H19: ='2'!H17 -> 501.5 | I19: ='2'!I17 -> 47 | J19: (21) | K19: - | L19: Supplies & Materials | M19: ='2'!M17 -> 0 | N19: ='2'!N17 -> 2.5 | O19: ='2'!O17 -> 0 | P19: 2.5
J20: (24) | K20: - | L20: POL
J21: (26) | K21: - | L21: Advertising & Publicity
A22: ='2'!A18 -> 0.5 | B22: ='2'!B18 -> 64.96 | C22: ='2'!C18 -> 10.15 | D22: ='2'!D18 -> 0.55 | E22: ='2'!E18 -> 167 | F22: ='2'!F18 -> 12.25 | G22: ='2'!G18 -> 0.55 | H22: ='2'!H18 -> 205 | I22: ='2'!I18 -> 12.25 | J22: (27) | K22: - | L22: Minor Works | M22: ='2'!M18 -> 0.55 | N22: ='2'!N18 -> 8.5 | O22: ='2'!O18 -> 0 | P22: 9.05
J23: (28) | K23: - | L23: Professional Services
J24: (31) - Grants-in-aid-General(Salary) | P24: 0
A25: ='2'!A20 -> 0 | B25: ='2'!B20 -> 1535.88 | C25: ='2'!C20 -> 0 | D25: ='2'!D20 -> 0 | E25: ='2'!E20 -> 1005 | F25: ='2'!F20 -> 50 | G25: ='2'!G20 -> 0 | H25: ='2'!H20 -> 1356 | I25: ='2'!I20 -> 465.5 | J25: (32) - Grants-in-aid General(N/Salary) | M25: ='2'!M20 -> 0 | N25: ='2'!N20 -> 0 | O25: ='2'!O20 -> 0 | P25: 0
A26: ='2'!A21 -> 0 | B26: ='2'!B21 -> 0 | C26: ='2'!C21 -> 0 | D26: ='2'!D21 -> 0 | E26: ='2'!E21 -> 0 | F26: ='2'!F21 -> 0 | G26: ='2'!G21 -> 0 | H26: ='2'!H21 -> 0 | I26: ='2'!I21 -> 0 | J26: (33) | K26: - | L26: Subsidies | M26: ='2'!M21 -> 0 | N26: ='2'!N21 -> 0 | O26: ='2'!O21 -> 0 | P26: 0
A27: ='2'!A22 -> 0 | B27: ='2'!B22 -> 1.47 | C27: ='2'!C22 -> 0 | D27: ='2'!D22 -> 0 | E27: ='2'!E22 -> 1.5 | F27: ='2'!F22 -> 0 | G27: ='2'!G22 -> 0 | H27: ='2'!H22 -> 1.5 | I27: ='2'!I22 -> 0 | J27: (34) | K27: - | L27: Scholarship/Stipend | M27: ='2'!M22 -> 0 | N27: ='2'!N22 -> 1.5 | O27: ='2'!O22 -> 0 | P27: 1.5
J28: (35) | K28: - | L28: Grants for Greation of Capital Assets
J29: (41) | K29: - | L29: Secret Service Expenses
J30: (43) | K30: - | L30: Suspenses
J31: (45) | K31: - | L31: Interest
A32: ='2'!A23 -> 0 | B32: ='2'!B23 -> 90.17 | C32: ='2'!C23 -> 0 | D32: ='2'!D23 -> 0 | E32: ='2'!E23 -> 61 | F32: ='2'!F23 -> 0.75 | G32: ='2'!G23 -> 0 | H32: ='2'!H23 -> 190 | I32: ='2'!I23 -> 2.37 | J32: (50) | K32: - | L32: Other Charges | M32: ='2'!M23 -> 0 | N32: ='2'!N23 -> 6.5 | O32: ='2'!O23 -> 0 | P32: 6.5
A33: ='2'!A24 -> 0 | B33: ='2'!B24 -> 8 | C33: ='2'!C24 -> 0 | D33: ='2'!D24 -> 0 | E33: ='2'!E24 -> 7 | F33: ='2'!F24 -> 10 | G33: ='2'!G24 -> 0 | H33: ='2'!H24 -> 7 | I33: ='2'!I24 -> 10 | J33: (51) | K33: - | L33: Motor Vehicles | M33: ='2'!M24 -> 0 | N33: ='2'!N24 -> 3 | O33: ='2'!O24 -> 0 | P33: 3
A34: ='2'!A25 -> 0 | B34: ='2'!B25 -> 28.03 | C34: ='2'!C25 -> 0 | D34: ='2'!D25 -> 0 | E34: ='2'!E25 -> 30.5 | F34: ='2'!F25 -> 6.53 | G34: ='2'!G25 -> 0 | H34: ='2'!H25 -> 126.5 | I34: ='2'!I25 -> 6.53 | J34: (52) | K34: - | L34: Machinery & Equipments | M34: ='2'!M25 -> 0 | N34: ='2'!N25 -> 1 | O34: ='2'!O25 -> 0 | P34: 1
A35: ='2'!A28 -> 0 | B35: ='2'!B28 -> 0 | C35: ='2'!C28 -> 0 | D35: ='2'!D28 -> 0 | E35: ='2'!E28 -> 0 | F35: ='2'!F28 -> 0 | G35: ='2'!G28 -> 0 | H35: ='2'!H28 -> 25.5 | I35: ='2'!I28 -> 0 | J35: (53) | L35: Major Works | M35: ='2'!M28 -> 0 | N35: ='2'!N28 -> 0 | O35: ='2'!O28 -> 0 | P35: 0
J36: (54) | K36: - | L36: Investment
J37: (55) | K37: - | L37: Loans & Advances
J38: (56) | K38: - | L38: Repayment of Borrowings
J39: (64) | K39: - | L39: Write off
A40: =SUM(A9:A35) -> 405.97 | B40: =SUM(B9:B35) -> 2094.33 | C40: 10.15 | D40: 487.2 | E40: 1810 | F40: 126.53 | G40: 505.05 | H40: 2494.5 | I40: 561.68 | J40: TOTAL OF DEMAND NO. 35 | M40: =SUM(M9:M35) -> 520.55 | N40: =SUM(N9:N35) -> 150 | O40: =SUM(O9:O35) -> 0 | P40: 670.55
H41: 25.5 | J41: Works Transferred to P.W.D
A42: =A40-A41 -> 405.97 | B42: =B40-B41 -> 2094.33 | C42: 10.15 | D42: 487.2 | E42: 1810 | F42: 126.53 | G42: 505.05 | H42: 2469 | I42: 561.68 | J42: NET TOTAL OF DEMAND NO. 35(VOTED) | M42: =M40-M41 -> 520.55 | N42: =N40-N41 -> 150 | O42: =O40-O41 -> 0 | P42: 670.55

Sheet 2
A1: 357
A2: DEMAND NO. 35
A3: FISHERIES
A4: Schedule for Object Headwise Expenditure
P5: (` in lakhs)
A6: Actual | D6: Budget Estimates | G6: Revised Estiamtes | J6: Object Head of Account | M6: Budget Estimate
A7: 2011-2012 | D7: 2012-2013 | G7: 2012-2013 | M7: 2013-2014
A8: Non-Plan | B8: Plan | C8: CSS/NEA/NLCPR | D8: Non-Plan | E8: Plan | F8: CSS/NEA/NLCPR | G8: Non-Plan | H8: Plan | I8: CSS/NEA/NLCPR | M8: Non-Plan | N8: Plan | O8: CSS/NEA/NLCPR | P8: Total
J9: Major Head : 2405 - Fisheries(Plan & Non Plan)
A10: ='3'!A18+'3'!A30+'4'!A37 -> 373.54 | B10: ='3'!B18+'3'!B30+'4'!B37 -> 30 | C10: ='3'!C18+'3'!C30+'4'!C37 -> 0 | D10: ='3'!D18+'3'!D30+'4'!D37 -> 471 | E10: ='3'!E18+'3'!E30+'4'!E37 -> 27 | F10: ='3'!F18+'3'!F30+'4'!F37 -> 0 | G10: ='3'!G18+'3'!G30+'4'!G37 -> 471 | H10: ='3'!H18+'3'!H30+'4'!H37 -> 27 | I10: ='3'!I18+'3'!I30+'4'!I37 -> 16.73 | J10: (01) | K10: - | L10: Salaries | M10: ='3'!M18+'3'!M30+'4'!M37 -> 502 | N10: ='3'!N18+'3'!N30+'4'!N37 -> 65 | O10: ='3'!O18+'3'!O30+'4'!O37 -> 0 | P10: =SUM(M10:O10) -> 567
A11: ='3'!A19+'3'!A31 -> 0.35 | B11: ='3'!B19+'3'!B31 -> 19.43 | C11: ='3'!C19+'3'!C31 -> 0 | D11: ='3'!D19+'3'!D31 -> 0 | E11: ='3'!E19+'3'!E31 -> 22 | F11: ='3'!F19+'3'!F31 -> 0 | G11: ='3'!G19+'3'!G31 -> 0 | H11: ='3'!H19+'3'!H31 -> 22 | I11: ='3'!I19+'3'!I31 -> 0 | J11: (02) | K11: - | L11: Wages | M11: ='3'!M19+'3'!M31 -> 0 | N11: ='3'!N19+'3'!N31 -> 32 | O11: ='3'!O19+'3'!O31 -> 0 | P11: =SUM(M11:O11) -> 32
A12: ='3'!A20+'3'!A32 -> 27.38 | B12: ='3'!B20+'3'!B32 -> 4.93 | C12: ='3'!C20+'3'!C32 -> 0 | D12: ='3'!D20+'3'!D32 -> 11.15 | E12: ='3'!E20+'3'!E32 -> 3 | F12: ='3'!F20+'3'!F32 -> 0 | G12: ='3'!G20+'3'!G32 -> 29 | H12: ='3'!H20+'3'!H32 -> 3 | I12: ='3'!I20+'3'!I32 -> 0 | J12: (06) | K12: - | L12: Medical Treatment | M12: ='3'!M20+'3'!M32 -> 13.5 | N12: ='3'!N20+'3'!N32 -> 2 | O12: ='3'!O20+'3'!O32 -> 0 | P12: 15.5
A13: ='3'!A21+'3'!A33+'4'!A38 -> 0.2 | B13: ='3'!B21+'3'!B33+'4'!B38 -> 27.98 | C13: ='3'!C21+'3'!C33+'4'!C38 -> 0 | D13: ='3'!D21+'3'!D33+'4'!D38 -> 0.5 | E13: ='3'!E21+'3'!E33+'4'!E38 -> 10 | F13: ='3'!F21+'3'!F33+'4'!F38 -> 0 | G13: ='3'!G21+'3'!G33+'4'!G38 -> 0.5 | H13: ='3'!H21+'3'!H33+'4'!H38 -> 10 | I13: ='3'!I21+'3'!I33+'4'!I38 -> 1 | J13: (11) | K13: - | L13: Domestic Travelling Expenses | M13: ='3'!M21+'3'!M33+'4'!M38 -> 0.5 | N13: ='3'!N21+'3'!N33+'4'!N38 -> 8 | O13: ='3'!O21+'3'!O33+'4'!O38 -> 0 | P13: 8.5
A14: ='3'!A22+'3'!A34+'4'!A39+'6'!A15 -> 4 | B14: ='3'!B22+'3'!B34+'4'!B39+'6'!B15 -> 37 | C14: ='3'!C22+'3'!C34+'4'!C39+'6'!C15 -> 0 | D14: ='3'!D22+'3'!D34+'4'!D39+'6'!D15 -> 4 | E14: ='3'!E22+'3'!E34+'4'!E39+'6'!E15 -> 13 | F14: ='3'!F22+'3'!F34+'4'!F39+'6'!F15 -> 0 | G14: ='3'!G22+'3'!G34+'4'!G39+'6'!G15 -> 4 | H14: ='3'!H22+'3'!H34+'4'!H39+'6'!H15 -> 13 | I14: ='3'!I22+'3'!I34+'4'!I39+'6'!I15 -> 0.3 | J14: (13) | K14: - | L14: Office Expenses | M14: ='3'!M22+'3'!M34+'4'!M39+'6'!M15 -> 4 | N14: ='3'!N22+'3'!N34+'4'!N39+'6'!N15 -> 9 | O14: ='3'!O22+'3'!O34+'4'!O39+'6'!O15 -> 0 | P14: 13
A15: ='3'!A23+'3'!A35 -> 0 | B15: ='3'!B23+'3'!B35 -> 6.42 | C15: ='3'!C23+'3'!C35 -> 0 | D15: ='3'!D23+'3'!D35 -> 0 | E15: ='3'!E23+'3'!E35 -> 6 | F15: ='3'!F23+'3'!F35 -> 0 | G15: ='3'!G23+'3'!G35 -> 0 | H15: ='3'!H23+'3'!H35 -> 6 | I15: ='3'!I23+'3'!I35 -> 0 | J15: (14) | K15: - | L15: Rent, Rates & Taxes | M15: ='3'!M23+'3'!M35 -> 0 | N15: ='3'!N23+'3'!N35 -> 10 | O15: ='3'!O23+'3'!O35 -> 0 | P15: 10
A16: ='6'!A16 -> 0 | B16: ='6'!B16 -> 2.06 | C16: ='6'!C16 -> 0 | D16: ='6'!D16 -> 0 | E16: ='6'!E16 -> 0.5 | F16: ='6'!F16 -> 0 | G16: ='6'!G16 -> 0 | H16: ='6'!H16 -> 0.5 | I16: ='6'!I16 -> 0 | J16: (16) | K16: - | L16: Publication | M16: ='6'!M16 -> 0 | N16: ='6'!N16 -> 1 | O16: ='6'!O16 -> 0 | P16: 1
A17: ='4'!A15+'5'!A22+'6'!A17+'5'!A31+'6'!A36+'4'!A25 -> 0 | B17: ='4'!B15+'5'!B22+'6'!B17+'5'!B31+'6'!B36+'4'!B25 -> 238 | C17: ='4'!C15+'5'!C22+'6'!C17+'5'!C31+'6'!C36+'4'!C25 -> 0 | D17: ='4'!D15+'5'!D22+'6'!D17+'5'!D31+'6'!D36+'4'!D25 -> 0 | E17: ='4'!E15+'5'!E22+'6'!E17+'5'!E31+'6'!E36+'4'!E25 -> 456.5 | F17: ='4'!F15+'5'!F22+'6'!F17+'5'!F31+'6'!F36+'4'!F25 -> 47 | G17: ='4'!G15+'5'!G22+'6'!G17+'5'!G31+'6'!G36+'4'!G25 -> 0 | H17: ='4'!H15+'5'!H22+'6'!H17+'5'!H31+'6'!H36+'4'!H25 -> 501.5 | I17: ='4'!I15+'5'!I22+'6'!I17+'5'!I31+'6'!I36+'4'!I25 -> 47 | J17: (21) | K17: - | L17: Supplies & Materials | M17: ='4'!M15+'5'!M22+'6'!M17+'5'!M31+'6'!M36+'4'!M25 -> 0 | N17: ='4'!N15+'5'!N22+'6'!N17+'5'!N31+'6'!N36+'4'!N25 -> 2.5 | O17: ='4'!O15+'5'!O22+'6'!O17+'5'!O31+'6'!O36+'4'!O25 -> 0 | P17: 2.5
A18: ='3'!A24+'3'!A36+'3'!A41+'4'!A16+'4'!A26+'4'!A32+'5'!A23+'5'!A32+'5'!A40+'6'!A18+'6'!A37 -> 0.5 | B18: ='3'!B24+'3'!B36+'3'!B41+'4'!B16+'4'!B26+'4'!B32+'5'!B23+'5'!B32+'5'!B40+'6'!B18+'6'!B37 -> 64.96 | C18: ='3'!C24+'3'!C36+'3'!C41+'4'!C16+'4'!C26+'4'!C32+'5'!C23+'5'!C32+'5'!C40+'6'!C18+'6'!C37 -> 10.15 | D18: ='3'!D24+'3'!D36+'3'!D41+'4'!D16+'4'!D26+'4'!D32+'5'!D23+'5'!D32+'5'!D40+'6'!D18+'6'!D37 -> 0.55 | E18: ='3'!E24+'3'!E36+'3'!E41+'4'!E16+'4'!E26+'4'!E32+'5'!E23+'5'!E32+'5'!E40+'6'!E18+'6'!E37 -> 167 | F18: ='3'!F24+'3'!F36+'3'!F41+'4'!F16+'4'!F26+'4'!F32+'5'!F23+'5'!F32+'5'!F40+'6'!F18+'6'!F37 -> 12.25 | G18: ='3'!G24+'3'!G36+'3'!G41+'4'!G16+'4'!G26+'4'!G32+'5'!G23+'5'!G32+'5'!G40+'6'!G18+'6'!G37 -> 0.55 | H18: ='3'!H24+'3'!H36+'3'!H41+'4'!H16+'4'!H26+'4'!H32+'5'!H23+'5'!H32+'5'!H40+'6'!H18+'6'!H37 -> 205 | I18: ='3'!I24+'3'!I36+'3'!I41+'4'!I16+'4'!I26+'4'!I32+'5'!I23+'5'!I32+'5'!I40+'6'!I18+'6'!I37 -> 12.25 | J18: (27) | K18: - | L18: Minor Works | M18: ='3'!M24+'3'!M36+'3'!M41+'4'!M16+'4'!M26+'4'!M32+'5'!M23+'5'!M32+'5'!M40+'6'!M18+'6'!M37 -> 0.55 | N18: ='3'!N24+'3'!N36+'3'!N41+'4'!N16+'4'!N26+'4'!N32+'5'!N23+'5'!N32+'5'!N40+'6'!N18+'6'!N37 -> 8.5 | O18: ='3'!O24+'3'!O36+'3'!O41+'4'!O16+'4'!O26+'4'!O32+'5'!O23+'5'!O32+'5'!O40+'6'!O18+'6'!O37 -> 0 | P18: 9.05
A19: ='4'!A17 -> 0 | B19: ='4'!B17 -> 0 | C19: ='4'!C17 -> 0 | J19: (31) - Grants-in-aid-General(Salary) | P19: 0
A20: ='4'!A18+'5'!A17+'5'!A25+'5'!A33+'6'!A20+'6'!A31+'6'!A38 -> 0 | B20: ='4'!B18+'5'!B17+'5'!B25+'5'!B33+'6'!B20+'6'!B31+'6'!B38 -> 1535.88 | C20: ='4'!C18+'5'!C17+'5'!C25+'5'!C33+'6'!C20+'6'!C31+'6'!C38 -> 0 | D20: ='4'!D18+'5'!D17+'5'!D25+'5'!D33+'6'!D20+'6'!D31+'6'!D38 -> 0 | E20: ='4'!E18+'5'!E17+'5'!E25+'5'!E33+'6'!E20+'6'!E31+'6'!E38 -> 1005 | F20: ='4'!F18+'5'!F17+'5'!F25+'5'!F33+'6'!F20+'6'!F31+'6'!F38 -> 50 | G20: ='4'!G18+'5'!G17+'5'!G25+'5'!G33+'6'!G20+'6'!G31+'6'!G38 -> 0 | H20: ='4'!H18+'5'!H17+'5'!H25+'5'!H33+'6'!H20+'6'!H31+'6'!H38 -> 1356 | I20: ='4'!I18+'5'!I17+'5'!I25+'5'!I33+'6'!I20+'6'!I31+'6'!I38 -> 465.5 | J20: (32) - Grants-in-aid General(N/Salary) | M20: ='4'!M18+'5'!M17+'5'!M25+'5'!M33+'6'!M20+'6'!M31+'6'!M38 -> 0 | N20: ='4'!N18+'5'!N17+'5'!N25+'5'!N33+'6'!N20+'6'!N31+'6'!N38 -> 0 | O20: ='4'!O18+'5'!O17+'5'!O25+'5'!O33+'6'!O20+'6'!O31+'6'!O38 -> 0 | P20: 0
A21: ='4'!A19 -> 0 | B21: ='4'!B19 -> 0 | C21: ='4'!C19 -> 0 | D21: ='4'!D19 -> 0 | E21: ='4'!E19 -> 0 | F21: ='4'!F19 -> 0 | G21: ='4'!G19 -> 0 | H21: ='4'!H19 -> 0 | I21: ='4'!I19 -> 0 | J21: (33) | K21: - | L21: Subsidies | M21: ='4'!M19 -> 0 | N21: ='4'!N19 -> 0 | O21: ='4'!O19 -> 0 | P21: 0
A22: ='6'!A21 -> 0 | B22: ='6'!B21 -> 1.47 | C22: ='6'!C21 -> 0 | D22: ='6'!D21 -> 0 | E22: ='6'!E21 -> 1.5 | F22: ='6'!F21 -> 0 | G22: ='6'!G21 -> 0 | H22: ='6'!H21 -> 1.5 | I22: ='6'!I21 -> 0 | J22: (34) | K22: - | L22: Scholarship/Stipend | M22: ='6'!M21 -> 0 | N22: ='6'!N21 -> 1.5 | O22: ='6'!O21 -> 0 | P22: 1.5
A23: ='3'!A25+'3'!A42+'4'!A20+'4'!A27+'4'!A33+'5'!A26+'5'!A34+'5'!A41+'6'!A22+'6'!A39+'4'!A40 -> 0 | B23: ='3'!B25+'3'!B42+'4'!B20+'4'!B27+'4'!B33+'5'!B26+'5'!B34+'5'!B41+'6'!B22+'6'!B39+'4'!B40 -> 90.17 | C23: ='3'!C25+'3'!C42+'4'!C20+'4'!C27+'4'!C33+'5'!C26+'5'!C34+'5'!C41+'6'!C22+'6'!C39+'4'!C40 -> 0 | D23: ='3'!D25+'3'!D42+'4'!D20+'4'!D27+'4'!D33+'5'!D26+'5'!D34+'5'!D41+'6'!D22+'6'!D39+'4'!D40 -> 0 | E23: ='3'!E25+'3'!E42+'4'!E20+'4'!E27+'4'!E33+'5'!E26+'5'!E34+'5'!E41+'6'!E22+'6'!E39+'4'!E40 -> 61 | F23: ='3'!F25+'3'!F42+'4'!F20+'4'!F27+'4'!F33+'5'!F26+'5'!F34+'5'!F41+'6'!F22+'6'!F39+'4'!F40 -> 0.75 | G23: ='3'!G25+'3'!G42+'4'!G20+'4'!G27+'4'!G33+'5'!G26+'5'!G34+'5'!G41+'6'!G22+'6'!G39+'4'!G40 -> 0 | H23: ='3'!H25+'3'!H42+'4'!H20+'4'!H27+'4'!H33+'5'!H26+'5'!H34+'5'!H41+'6'!H22+'6'!H39+'4'!H40 -> 190 | I23: ='3'!I25+'3'!I42+'4'!I20+'4'!I27+'4'!I33+'5'!I26+'5'!I34+'5'!I41+'6'!I22+'6'!I39+'4'!I40 -> 2.37 | J23: (50) | K23: - | L23: Other Charges | M23: ='3'!M25+'3'!M42+'4'!M20+'4'!M27+'4'!M33+'5'!M26+'5'!M34+'5'!M41+'6'!M22+'6'!M39+'4'!M40 -> 0 | N23: ='3'!N25+'3'!N42+'4'!N20+'4'!N27+'4'!N33+'5'!N26+'5'!N34+'5'!N41+'6'!N22+'6'!N39+'4'!N40 -> 6.5 | O23: ='3'!O25+'3'!O42+'4'!O20+'4'!O27+'4'!O33+'5'!O26+'5'!O34+'5'!O41+'6'!O22+'6'!O39+'4'!O40 -> 0 | P23: 6.5
A24: ='3'!A26+'4'!A21+'5'!A42 -> 0 | B24: ='3'!B26+'4'!B21+'5'!B42 -> 8 | C24: ='3'!C26+'4'!C21+'5'!C42 -> 0 | D24: ='3'!D26+'4'!D21+'5'!D42 -> 0 | E24: ='3'!E26+'4'!E21+'5'!E42 -> 7 | F24: ='3'!F26+'4'!F21+'5'!F42 -> 10 | G24: ='3'!G26+'4'!G21+'5'!G42 -> 0 | H24: ='3'!H26+'4'!H21+'5'!H42 -> 7 | I24: ='3'!I26+'4'!I21+'5'!I42 -> 10 | J24: (51) | K24: - | L24: Motor Vehicles | M24: ='3'!M26+'4'!M21+'5'!M42 -> 0 | N24: ='3'!N26+'4'!N21+'5'!N42 -> 3 | O24: ='3'!O26+'4'!O21+'5'!O42 -> 0 | P24: 3
A25: ='3'!A43+'4'!A28+'5'!A43+'6'!A23+'6'!A40 -> 0 | B25: ='3'!B43+'4'!B28+'5'!B43+'6'!B23+'6'!B40 -> 28.03 | C25: ='3'!C43+'4'!C28+'5'!C43+'6'!C23+'6'!C40 -> 0 | D25: ='3'!D43+'4'!D28+'5'!D43+'6'!D23+'6'!D40 -> 0 | E25: ='3'!E43+'4'!E28+'5'!E43+'6'!E23+'6'!E40 -> 30.5 | F25: ='3'!F43+'4'!F28+'5'!F43+'6'!F23+'6'!F40 -> 6.53 | G25: ='3'!G43+'4'!G28+'5'!G43+'6'!G23+'6'!G40 -> 0 | H25: ='3'!H43+'4'!H28+'5'!H43+'6'!H23+'6'!H40 -> 126.5 | I25: ='3'!I43+'4'!I28+'5'!I43+'6'!I23+'6'!I40 -> 6.53 | J25: (52) | K25: - | L25: Machinery & Equipments | M25: ='3'!M43+'4'!M28+'5'!M43+'6'!M23+'6'!M40 -> 0 | N25: ='3'!N43+'4'!N28+'5'!N43+'6'!N23+'6'!N40 -> 1 | O25: ='3'!O43+'4'!O28+'5'!O43+'6'!O23+'6'!O40 -> 0 | P25: 1
A26: =SUM(A10:A25) -> 405.97 | B26: 2094.33 | C26: 10.15 | D26: 487.2 | E26: 1810 | F26: 126.53 | G26: =SUM(G10:G25) -> 505.05 | H26: 2469 | I26: 561.68 | J26: TOTAL OF MAJOR HEAD : 2405 | M26: =SUM(M10:M25) -> 520.55 | N26: =SUM(N10:N25) -> 150 | O26: =SUM(O10:O25) -> 0 | P26: 670.55
J27: Major Head : 4405 - C.O on Fisheries
B28: ='7'!B16+'7'!B22 -> 0 | C28: ='7'!C16+'7'!C22 -> 0 | D28: ='7'!D16+'7'!D22 -> 0 | E28: ='7'!E16+'7'!E22 -> 0 | F28: ='7'!F16+'7'!F22 -> 0 | G28: ='7'!G16+'7'!G22 -> 0 | H28: ='7'!H16+'7'!H22 -> 25.5 | I28: ='7'!I16+'7'!I22 -> 0 | J28: (53) | K28: - | L28: Major Works | P28: 0
A29: =A28 -> 0 | B29: =B28 -> 0 | C29: 0 | D29: =D28 -> 0 | E29: =E28 -> 0 | F29: =F28 -> 0 | G29: =G28 -> 0 | H29: =H28 -> 25.5 | I29: =I28 -> 0 | J29: TOTAL OF MAJOR HEAD : 4405 | M29: =M28 -> 0 | N29: =N28 -> 0 | O29: =O28 -> 0 | P29: 0
H30: =H28 -> 25.5 | J30: Works transferred to PWD
A31: =A30 -> 0 | B31: 0 | C31: 0 | D31: =D30 -> 0 | E31: 0 | F31: 0 | G31: =G30 -> 0 | H31: =H29-H30 -> 0 | I31: 0 | J31: NET TOTAL OF MAJOR HEAD : 4405 | M31: =M30 -> 0 | N31: 0 | O31: 0 | P31: =SUM(M31:O31) -> 0

Sheet 3
A1: 358
A2: DEMAND NO. 35
A3: FISHERIES
A4: Controlling Officer : Director, Fisheries
A5: I. | B5: Estimate of the amount required in the year ending on 31st March, 2014 to defray the charges in respect of :-
D6: Revenue | E6: Capital | F6: Total | J6: REVENUE SECTION
C7: Voted | D7: ='7'!P26 -> 670.55 | E7: ='7'!P27 -> 0 | F7: =SUM(D7:E7) -> 670.55
C8: Charged | J8: Sector | L8: : C Economic Services
C9: Total | D9: =SUM(D7:D8) -> 670.55 | E9: =SUM(E7:E8) -> 0 | F9: =SUM(D9:E9) -> 670.55 | J9: Major Head | L9: : 2405-Fisheries
A10: II | B10: Details of the Estimates are given below :- | P10: (` in lakhs)
A11: Actual | D11: Budget Estimates | G11: Revised Estimates | J11: Head of Account | M11: Budget Estimate
A12: 2011-2012 | D12: 2012-2013 | G12: 2012-2013 | M12: 2013-2014
A13: Non-Plan | B13: Plan | C13: CSS/NEA/NLCPR | D13: Non-Plan | E13: Plan | F13: CSS/NEA/NLCPR | G13: Non-Plan | H13: Plan | I13: CSS/NEA/NLCPR | M13: Non-Plan | N13: Plan | O13: CSS/NEA/NLCPR | P13: Total
J14: Sub Major Head : 00
J15: Minor Head : 001 - Direction & Administration
J16: Sub-Head : (01)-Direction
J17: Detailed Head : 00
A18: =113.55+0.7 -> 114.25 | B18: 10 | D18: 129.45 | E18: 7 | G18: 129.45 | H18: 7 | J18: Object Head | L18: (01) - Salaries | M18: 120 | N18: 15 | P18: =SUM(M18:O18) -> 135
B19: 8.44 | E19: 12 | H19: 12 | L19: (02) - Wages | N19: 12 | P19: =SUM(M19:O19) -> 12
A20: 27.38 | B20: 0.99 | D20: 11.15 | E20: 1 | G20: =11.15+9.47+8.38 -> 29 | H20: 1 | L20: (06) - Medical Treatment | M20: 13.5 | N20: 1 | P20: 14.5
A21: 0.2 | B21: 2.99 | D21: 0.2 | E21: 3 | G21: 0.2 | H21: 3 | L21: (11) - Domestic Travel Expenses | M21: 0.2 | N21: 2 | P21: 2.2
A22: 1.95 | B22: 12 | D22: 1.95 | E22: 6 | G22: 1.95 | H22: 6 | L22: (13) - Office Expenses | M22: 1.95 | N22: 2 | P22: 3.95
B23: 3.92 | E23: 4 | H23: 4 | L23: (14) - Rent, Rates & Taxes | N23: 6 | P23: 6
A24: 0.5 | B24: 4.13 | D24: 0.5 | E24: 2 | G24: 0.5 | H24: 2 | L24: (27) - Minor Works. | M24: 0.5 | N24: 1 | P24: 1.5
B25: 5.5 | E25: 1 | H25: 1 | L25: (50) - Other Charges. | N25: 2 | P25: 2
B26: 8 | E26: 7 | H26: 7 | L26: (51) - Motor Vehicles | N26: 3 | P26: 3
A27: =SUM(A18:A26) -> 144.28 | B27: =SUM(B18:B26) -> 55.97 | D27: =SUM(D18:D26) -> 143.25 | E27: =SUM(E18:E26) -> 43 | G27: =SUM(G18:G26) -> 161.1 | H27: =SUM(H18:H26) -> 43 | J27: TOTAL OF 001(01)-Direction | M27: =SUM(M18:M26) -> 136.15 | N27: =SUM(N18:N26) -> 44 | P27: 180.15
J28: Sub-Head : (02)-Administration
J29: Detailed Head : 00
A30: =286.7-30.96+3.55 -> 259.29 | B30: 20 | D30: 341.55 | E30: 20 | G30: 341.55 | H30: 20 | J30: Object Head | L30: (01) - Salaries | M30: 382 | N30: 50 | P30: =SUM(M30:O30) -> 432
A31: 0.35 | B31: 10.99 | E31: 10 | H31: 10 | L31: (02) - Wages | N31: 20 | P31: 20
B32: 3.94 | E32: 2 | H32: 2 | L32: (06) - Medical Treatment | N32: 1 | P32: 1
B33: 24.99 | D33: 0.3 | E33: 7 | G33: 0.3 | H33: 7 | L33: (11) - Domestic Travel Expenses | M33: 0.3 | N33: 6 | P33: 6.3
A34: 2.05 | B34: 25 | D34: 2.05 | E34: 6 | G34: 2.05 | H34: 6 | L34: (13) - Office Expenses | M34: 2.05 | N34: 6 | P34: 8.05
B35: 2.5 | E35: 2 | H35: 2 | L35: (14) - Rents, Rates & Taxes | N35: 4 | P35: 4
B36: 24.5 | D36: 0.05 | E36: 1 | G36: 0.05 | H36: 1 | L36: (27) - Minor Works. | M36: 0.05 | N36: 2 | P36: 2.05
A37: =SUM(A30:A36) -> 261.69 | B37: =SUM(B30:B36) -> 111.92 | C37: =SUM(C30:C36) -> 0 | D37: =SUM(D30:D36) -> 343.95 | E37: =SUM(E30:E36) -> 48 | G37: =SUM(G30:G36) -> 343.95 | H37: =SUM(H30:H36) -> 48 | J37: TOTAL OF 001(02)-Administration | M37: =SUM(M30:M36) -> 384.4 | N37: =SUM(N30:N36) -> 89 | P37: 473.4
J38: Minor Head : 101-Inland Fisheries
J39: Sub-head : (01)-Fish Seed Production cum Farming
J40: Detailed Head : 00
B41: =19.96-2.89 -> 17.07 | E41: 4 | H41: 4 | J41: Object Head | L41: (27) - Minor Works | N41: 2 | P41: =SUM(M41:O41) -> 2
B42: 8 | E42: 0.5 | H42: 0.5 | L42: (50) - Other Charges | N42: 1 | P42: 1
B43: 13.03 | E43: 0.5 | H43: 0.5 | L43: (52) - Machinery & Equipment | N43: 1 | P43: 1
A44: =SUM(A41:A43) -> 0 | B44: =SUM(B41:B43) -> 38.1 | E44: =SUM(E41:E43) -> 5 | H44: =SUM(H41:H43) -> 5 | J44: TOTAL OF 101(01)-Fish Seed Production cum Farming | N44: =SUM(N41:N43) -> 4 | P44: 4

Sheet 4
A1: 359
A2: DEMAND NO. 35
A3: FISHERIES
A4: Controlling Officer : Director, Fisheries
J5: REVENUE SECTION
J6: Sector | L6: : 'C' Economic Services
A7: II. | B7: Details of the Estimates are given below :- | J7: Major Head | L7: : 2405-Fisheries | P7: (` in lakhs)
A8: Actual | D8: Budget Estimates | G8: Revised Estimates | J8: Head of Account | M8: Budget Estimate
A9: 2011-2012 | D9: 2012-2013 | G9: 2012-2013 | M9: 2013-2014
A10: Non-Plan | B10: Plan | C10: CSS/NEA/NLCPR | D10: Non-Plan | E10: Plan | F10: CSS/NEA/NLCPR | G10: Non-Plan | H10: Plan | I10: CSS/NEA/NLCPR | M10: Non-Plan | N10: Plan | O10: CSS/NEA/NLCPR | P10: Total
J11: Sub Major Head : 00
J12: Minor Head : 101-Inland Fisheries
J13: Sub-Head : (02)-Fresh Water Aquaculture
J14: Detailed Head : 00
B15: 237 | E15: 47 | H15: 47 | J15: Object Head | L15: (21) - Supplies & Materials | N15: 2 | P15: =SUM(M15:O15) -> 2
L16: (27) - Minor Works | P16: =SUM(M16:O16) -> 0
L17: (31) - Grants-in-aid-General(Salary) | P17: 0
B18: =92+46.96 -> 138.96 | F18: 50 | I18: 308 | L18: (32) - Grants-in-aid General(N/Salary) | P18: 0
L19: (33) - Subsidies | P19: 0
B20: 1.5 | L20: (50) - Other Charges | N20: 1 | P20: 1
L21: (51) - Motor Vehicle | P21: 0
A22: =SUM(A15:A21) -> 0 | B22: =SUM(B15:B21) -> 377.46 | C22: =SUM(C15:C21) -> 0 | E22: =SUM(E15:E21) -> 47 | F22: =SUM(F15:F21) -> 50 | H22: =SUM(H15:H21) -> 47 | I22: =SUM(I15:I21) -> 308 | J22: TOTAL OF 101(02)-Fresh Water Aquaculture | N22: =SUM(N15:N21) -> 3 | O22: =SUM(O15:O21) -> 0 | P22: 3
J23: Sub-Head : (03)-Dev. of Riverine Fisheries
J24: Detailed Head : 00
F25: 47 | I25: 47 | J25: Object Head | L25: (21) - Supplies & Materials | P25: =SUM(N25:O25) -> 0
B26: 1 | C26: 10.15 | E26: 0.5 | F26: 6.25 | H26: 0.5 | I26: 6.25 | L26: (27) - Minor Works | N26: 0.5 | P26: =SUM(N26:O26) -> 0.5
B27: 7 | F27: 0.75 | I27: 0.75 | L27: (50) - Other Charges | N27: 0.5 | P27: =SUM(N27:O27) -> 0.5
B28: 14 | L28: (52) - Machinery & Equipment | P28: =SUM(N28:O28) -> 0
A29: =SUM(A26:A28) -> 0 | B29: =SUM(B26:B28) -> 22 | C29: =SUM(C26:C28) -> 10.15 | E29: =SUM(E25:E28) -> 0.5 | F29: =SUM(F25:F28) -> 54 | H29: =SUM(H25:H28) -> 0.5 | I29: =SUM(I25:I28) -> 54 | J29: TOTAL OF 101(03)-Dev. of Riverine Fisheries | N29: =SUM(N25:N28) -> 1 | O29: =SUM(O25:O28) -> 0 | P29: =SUM(N29:O29) -> 1
J30: Sub Head : (04)-Cold Water Fisheries
J31: Detailed Head : 00
B32: 1.5 | J32: Object Head | L32: (27) - Minor Works | N32: 1 | P32: =SUM(M32:O32) -> 1
B33: 1.5 | E33: 0.5 | H33: 0.5 | L33: (50) - Other Charges | N33: 1 | P33: 1
A34: =SUM(A32:A33) -> 0 | B34: =SUM(B32:B33) -> 3 | E34: =SUM(E32:E33) -> 0.5 | H34: =SUM(H32:H33) -> 0.5 | J34: TOTAL OF 101(04)-Cold Water Fisheries | N34: =SUM(N32:N33) -> 2 | P34: 2
J35: Sub Head : (05)-Dev. of Inland Fisheries Statistics
J36: Detailed Head : 00
I37: 16.73 | J37: Object Head | L37: (01) - Salaries | P37: =SUM(M37:O37) -> 0
I38: 1 | L38: (11) - Domestic Travel Expenses | P38: =SUM(M38:O38) -> 0
E39: 1 | H39: 1 | I39: 0.3 | L39: (13) - Office Expenses | N39: 1 | P39: 1
I40: 1.62 | L40: (50) - Other Charges
A41: =SUM(A37:A39) -> 0 | B41: 0 | C41: 0 | D41: 0 | E41: 1 | F41: 0 | G41: 0 | H41: 1 | I41: =SUM(I37:I40) -> 19.65 | J41: TOTAL OF 101(05) - Dev. of Inland Fisheries | M41: =SUM(M37:M39) -> 0 | N41: =SUM(N37:N39) -> 1 | O41: =SUM(O37:O39) -> 0 | P41: 1

Sheet 5
A1: 360
A2: DEMAND NO. 35
A3: FISHERIES
A4: Controlling Officer : Director, Fisheries
J5: REVENUE SECTION
J6: Sector | L6: : 'C' Economic Services
B7: Details of the Estimates are given below :- | J7: Major Head | L7: : 2405-Fisheries | P7: (` in lakhs)
A8: Actual | D8: Budget Estimates | G8: Revised Estimates | J8: Head of Account | M8: Budget Estimate
A9: 2011-2012 | D9: 2012-2013 | G9: 2012-2013 | M9: 2013-2014
A10: Non-Plan | B10: Plan | C10: CSS/NEA/NLCPR | D10: Non-Plan | E10: Plan | F10: CSS/NEA/NLCPR | G10: Non-Plan | H10: Plan | I10: CSS/NEA/NLCPR | M10: Non-Plan | N10: Plan | O10: CSS/NEA/NLCPR | P10: Total
J11: Sub Major Head : 00
J12: Minor Head : 101-Inland Fisheries
J13: Sub-Head : (06) - Fisherman Welfare Scheme
J14: Detailed Head : 00
J15: Object Head | P15: =SUM(M15:O15) -> 0
L16: (31) - Grants-in-aid-General(Salary) | P16: =SUM(M16:O16) -> 0
I17: 94 | L17: (32) - Grants-in-aid General(N/Salary) | P17: 0
A18: =SUM(A17) -> 0 | B18: 0 | C18: 0 | D18: 0 | E18: 0 | F18: 0 | G18: 0 | H18: 0 | I18: =SUM(I17) -> 94 | J18: TOTAL OF 101(06) Fisherman Welfare Scheme | N18: =SUM(N17) -> 0 | P18: 0
J20: Sub-Head : (07) - Intensive Aqua in Ponds & Tanks (NFDB)
J21: Detailed Head : 00
J22: Object Head | L22: (21) - Supplies & Materials | P22: =SUM(M22:O22) -> 0
L23: (27) - Minor Works | P23: =SUM(M23:O23) -> 0
L24: (31) - Grants-in-aid-General(Salary) | P24: 0
I25: 63.5 | L25: (32) - Grants-in-aid General(N/Salary) | P25: 0
L26: (50) - Other Charges | P26: 0
A27: =SUM(A22:A26) -> 0 | B27: =SUM(B22:B26) -> 0 | C27: =SUM(C22:C26) -> 0 | E27: =SUM(E23:E26) -> 0 | H27: =SUM(H25:H26) -> 0 | I27: =SUM(I25:I26) -> 63.5 | J27: TOTAL OF 101(07) Intensive Aqua/NFDB | N27: =SUM(N23:N26) -> 0 | P27: 0
J29: Sub-head : (08)-State Matching Share for CSS-SCA
J30: Detailed Head : 00
E31: 35 | H31: 35 | J31: Object Head: | L31: (21) - Supplies & Materials | P31: =SUM(N31:O31) -> 0
B32: 9.87 | L32: (27) - Minor Works. | P32: =SUM(N32:O32) -> 0
B33: =127.23+289.69 -> 416.92 | E33: 35 | H33: 35 | L33: (32) - G.I.A-General (Non-Salary) | P33: =SUM(N33:O33) -> 0
B34: 62.67 | L34: (50) - Other Charges | P34: =SUM(N34:O34) -> 0
A35: =SUM(A32:A34) -> 0 | B35: =SUM(B32:B34) -> 489.46 | E35: =SUM(E31:E34) -> 70 | H35: =SUM(H31:H34) -> 70 | J35: TOTAL OF 101(08)-SMS for CSS/SCA | N35: =SUM(N31:N34) -> 0 | P35: =SUM(N35:O35) -> 0
J37: Minor Head:105-Processing, Preservation & Marketing
J38: Sub-head : (01)-Marketing
J39: Detailed Head : 00
B40: =5.99-0.1 -> 5.89 | E40: 1.5 | F40: 6 | H40: 1.5 | I40: 6 | J40: Object Head: | L40: (27) - Minor Works. | N40: 2 | P40: =SUM(N40:O40) -> 2
B41: 1 | E41: 1 | H41: 1 | L41: (50) - Other Charges | N41: 1 | P41: =SUM(N41:O41) -> 1
F42: 10 | I42: 10 | L42: (51) - Motor Vehicles | P42: =SUM(N42:O42) -> 0
B43: 1 | F43: 6.53 | I43: 6.53 | L43: (52) - Machinery & Equipment | P43: =SUM(N43:O43) -> 0
A44: =SUM(A40:A43) -> 0 | B44: =SUM(B40:B43) -> 7.89 | E44: =SUM(E40:E43) -> 2.5 | F44: =SUM(F40:F43) -> 22.53 | H44: =SUM(H40:H43) -> 2.5 | I44: =SUM(I40:I43) -> 22.53 | J44: TOTAL OF 105(01)-Marketing | N44: =SUM(N40:N43) -> 3 | O44: =SUM(O40:O43) -> 0 | P44: =SUM(N44:O44) -> 3

Sheet 6
A1: 361
A2: DEMAND NO. 35
A3: FISHERIES
A4: Controlling Officer : Director, Fisheries
J5: REVENUE SECTION
J6: Sector | L6: : 'C' Economic Services
B7: Details of the Estimates are given below :- | J7: Major Head | L7: : 2405-Fisheries | M7: 2013-2014 | P7: (` in lakhs)
A8: Actual | D8: Budget Estimates | G8: Revised Estimates | J8: Head of Account | M8: Budget Estimate
A9: 2011-2012 | D9: 2012-2013 | G9: 2012-2013 | M9: 2013-2014
A10: Non-Plan | B10: Plan | C10: CSS/NEA/NLCPR | D10: Non-Plan | E10: Plan | F10: CSS/NEA/NLCPR | G10: Non-Plan | H10: Plan | I10: CSS/NEA/NLCPR | M10: Non-Plan | N10: Plan | O10: CSS/NEA/NLCPR | P10: Total
J11: Sub Major Head : 00
J12: Minor Head:109-Extension & Training
J13: Sub-Head : (01)-Information, Extension Education & Training
J14: Detailed Head : 00
J15: Object Head: | L15: (13) - Office Expenses | P15: =SUM(M15:O15) -> 0
B16: =2.02+0.04 -> 2.06 | E16: 0.5 | H16: 0.5 | L16: (16) - Publication | N16: 1 | P16: =SUM(M16:O16) -> 1
B17: 1 | E17: 0.5 | H17: 0.5 | L17: (21) - Supplies & Materials | N17: 0.5 | P17: 0.5
B18: 1 | L18: (27) - Minor Works. | P18: 0
L19: (31) - Grants-in-aid-General(Salary) | P19: 0
L20: (32) - Grants-in-aid General(N/Salary) | P20: 0
B21: 1.47 | E21: 1.5 | H21: 1.5 | L21: (34) - Scholarship/Stipend | N21: 1.5 | P21: 1.5
B22: 3 | L22: (50) - Other Charges | P22: 0
L23: (52) - Machinery & Equipment | P23: 0
A24: =SUM(A16:A23) -> 0 | B24: =SUM(B16:B23) -> 8.53 | C24: =SUM(C16:C23) -> 0 | E24: =SUM(E16:E23) -> 2.5 | F24: =SUM(F23) -> 0 | H24: =SUM(H16:H23) -> 2.5 | I24: =SUM(I23) -> 0 | J24: TOTAL OF 109(01) | N24: =SUM(N16:N23) -> 3 | O24: =SUM(O23) -> 0 | P24: 3
J26: Minor Head : 800-Other Expenditure
J27: Sub Head : (88)-New Land Use Policy (NLUP)
J28: Detailed Head : 01- Construction of Fish Pond
J29: Object Head: | P29: =SUM(M29:O29) -> 0
L30: (31) - Grants-in-aid-General(Salary) | P30: 0
B31: 980 | E31: 890 | H31: 890 | L31: (32) - Grants-in-aid General(N/Salary) | P31: =SUM(N31:O31) -> 0
A32: =SUM(A31) -> 0 | B32: =SUM(B31) -> 980 | E32: =SUM(E31) -> 890 | H32: =SUM(H31) -> 890 | J32: TOTAL OF 800(88)-NLUP | N32: =SUM(N31) -> 0 | P32: =SUM(N32:O32) -> 0
J34: Sub Head : (77)-Rashtrya Krishi Vikas Yojana (RKVY)
J35: Detailed Head : 01- National Mission for Protein Supplement
E36: 374 | H36: 419 | J36: Object Head: | L36: (21) - Supplies & Materials | P36: =SUM(N36:O36) -> 0
E37: 158 | H37: 196 | L37: (27) - Minor Works | P37: 0
E38: 80 | H38: 431 | L38: (32) - Grants-in-aid General(N/Salary) | P38: 0
E39: 58 | H39: 187 | L39: (50) - Other Charges | P39: 0
E40: 30 | H40: 126 | L40: (51) - Machinery & Equipment | P40: 0
A41: =SUM(A36:A40) -> 0 | B41: 0 | C41: 0 | D41: 0 | E41: =SUM(E36:E40) -> 700 | H41: =SUM(H36:H40) -> 1359 | J41: TOTAL OF 800(77)(01)-RKVY | N41: =SUM(N36:N40) -> 0 | P41: 0
A42: ='3'!A27+'3'!A37+'3'!A44+'4'!A22+'4'!A29+'4'!A34+'4'!A41+'5'!A18+'5'!A27+'5'!A35+'5'!A44+'6'!A24+'6'!A32+A41 -> 405.97 | B42: ='3'!B27+'3'!B37+'3'!B44+'4'!B22+'4'!B29+'4'!B34+'4'!B41+'5'!B18+'5'!B27+'5'!B35+'5'!B44+'6'!B24+'6'!B32+B41 -> 2094.33 | C42: ='3'!C27+'3'!C37+'3'!C44+'4'!C22+'4'!C29+'4'!C34+'4'!C41+'5'!C18+'5'!C27+'5'!C35+'5'!C44+'6'!C24+'6'!C32+C41 -> 10.15 | D42: ='3'!D27+'3'!D37+'3'!D44+'4'!D22+'4'!D29+'4'!D34+'4'!D41+'5'!D18+'5'!D27+'5'!D35+'5'!D44+'6'!D24+'6'!D32+D41 -> 487.2 | E42: ='3'!E27+'3'!E37+'3'!E44+'4'!E22+'4'!E29+'4'!E34+'4'!E41+'5'!E18+'5'!E27+'5'!E35+'5'!E44+'6'!E24+'6'!E32+E41 -> 1810 | F42: ='3'!F27+'3'!F37+'3'!F44+'4'!F22+'4'!F29+'4'!F34+'4'!F41+'5'!F18+'5'!F27+'5'!F35+'5'!F44+'6'!F24+'6'!F32+F41 -> 126.53 | G42: ='3'!G27+'3'!G37+'3'!G44+'4'!G22+'4'!G29+'4'!G34+'4'!G41+'5'!G18+'5'!G27+'5'!G35+'5'!G44+'6'!G24+'6'!G32+G41 -> 505.05 | H42: ='3'!H27+'3'!H37+'3'!H44+'4'!H22+'4'!H29+'4'!H34+'4'!H41+'5'!H18+'5'!H27+'5'!H35+'5'!H44+'6'!H24+'6'!H32+H41 -> 2469 | I42: ='3'!I27+'3'!I37+'3'!I44+'4'!I22+'4'!I29+'4'!I34+'4'!I41+'5'!I18+'5'!I27+'5'!I35+'5'!I44+'6'!I24+'6'!I32+I41 -> 561.68 | J42: TOTAL OF PLAN & NON PLAN | M42: ='3'!M27+'3'!M37+'3'!M44+'4'!M22+'4'!M29+'4'!M34+'4'!M41+'5'!M18+'5'!M27+'5'!M35+'5'!M44+'6'!M24+'6'!M32+M41 -> 520.55 | N42: ='3'!N27+'3'!N37+'3'!N44+'4'!N22+'4'!N29+'4'!N34+'4'!N41+'5'!N18+'5'!N27+'5'!N35+'5'!N44+'6'!N24+'6'!N32+N41 -> 150 | O42: ='3'!O27+'3'!O37+'3'!O44+'4'!O22+'4'!O29+'4'!O34+'4'!O41+'5'!O18+'5'!O27+'5'!O35+'5'!O44+'6'!O24+'6'!O32+O41 -> 0 | P42: =SUM(M42:O42) -> 670.55

Sheet 7
A1: 362
A2: DEMAND NO. 35
A3: FISHERIES
A4: Controlling Officer : Director, Fisheries
J5: REVENUE SECTION
J6: Sector | L6: : 'C' Economic Services
B7: Details of the Estimates are given below :- | J7: Major Head | L7: : 4405 - C.O on Fisheries | P7: (` in lakhs)
A8: Actual | D8: Budget Estimates | G8: Revised Estimates | J8: Head of Account | M8: Budget Estimate
A9: 2011-2012 | D9: 2012-2013 | G9: 2012-2013 | M9: 2013-2014
A10: Non-Plan | B10: Plan | C10: CSS/NEA/NLCPR | D10: Non-Plan | E10: Plan | F10: CSS/NEA/NLCPR | G10: Non-Plan | H10: Plan | I10: CSS/NEA/NLCPR | M10: Non-Plan | N10: Plan | O10: CSS/NEA/NLCPR | P10: Total
J12: Sub Major Head : 00
J13: Minor Head : 001 - Direction & Administration
J14: Sub-Head : (01)-Direction
J15: Detailed Head : 00
H16: 25.5 | J16: Object Head | L16: (53) - Major Works | P16: =SUM(M16:O16) -> 0
A17: =SUM(A16) -> 0 | B17: 0 | C17: 0 | D17: 0 | E17: 0 | F17: 0 | G17: 0 | H17: =SUM(H16) -> 25.5 | J17: TOTAL OF 001(01) | N17: =SUM(N16) -> 0 | P17: =SUM(M17:O17) -> 0
J19: Minor Head : 800- Other Expenditure
J20: Sub-Head : (88)-New Land Use Policy
J21: Detailed Head : 01 - NLUP Infrastructure Component
J22: Object Head | L22: (53) - Major Works | P22: =SUM(M22:O22) -> 0
B23: =SUM(B22) -> 0 | E23: =SUM(E22) -> 0 | G23: =SUM(G22) -> 0 | H23: =SUM(H22) -> 0 | J23: TOTAL OF 800/88(01)- NLUP | P23: =SUM(M23:O23) -> 0
A24: =A23+A17 -> 0 | B24: =B23+B17 -> 0 | C24: 0 | D24: 0 | E24: 0 | F24: 0 | G24: 0 | H24: =H23+H17 -> 25.5 | I24: 0 | J24: TOTAL OF MAJOR HEAD : 4405 | M24: =M23+M17 -> 0 | N24: =N23+N17 -> 0 | O24: =O23+O17 -> 0
A26: ='3'!A27+'3'!A37+'3'!A44+'4'!A22+'4'!A29+'4'!A34+'4'!A41+'5'!A18+'5'!A27+'5'!A35+'5'!A44+'6'!A24+'6'!A32+'6'!A41 -> 405.97 | B26: ='3'!B27+'3'!B37+'3'!B44+'4'!B22+'4'!B29+'4'!B34+'4'!B41+'5'!B18+'5'!B27+'5'!B35+'5'!B44+'6'!B24+'6'!B32+'6'!B41 -> 2094.33 | C26: ='3'!C27+'3'!C37+'3'!C44+'4'!C22+'4'!C29+'4'!C34+'4'!C41+'5'!C18+'5'!C27+'5'!C35+'5'!C44+'6'!C24+'6'!C32+'6'!C41 -> 10.15 | D26: ='3'!D27+'3'!D37+'3'!D44+'4'!D22+'4'!D29+'4'!D34+'4'!D41+'5'!D18+'5'!D27+'5'!D35+'5'!D44+'6'!D24+'6'!D32+'6'!D41 -> 487.2 | E26: ='3'!E27+'3'!E37+'3'!E44+'4'!E22+'4'!E29+'4'!E34+'4'!E41+'5'!E18+'5'!E27+'5'!E35+'5'!E44+'6'!E24+'6'!E32+'6'!E41 -> 1810 | F26: ='3'!F27+'3'!F37+'3'!F44+'4'!F22+'4'!F29+'4'!F34+'4'!F41+'5'!F18+'5'!F27+'5'!F35+'5'!F44+'6'!F24+'6'!F32+'6'!F41 -> 126.53 | G26: ='3'!G27+'3'!G37+'3'!G44+'4'!G22+'4'!G29+'4'!G34+'4'!G41+'5'!G18+'5'!G27+'5'!G35+'5'!G44+'6'!G24+'6'!G32+'6'!G41 -> 505.05 | H26: ='3'!H27+'3'!H37+'3'!H44+'4'!H22+'4'!H29+'4'!H34+'4'!H41+'5'!H18+'5'!H27+'5'!H35+'5'!H44+'6'!H24+'6'!H32+'6'!H41 -> 2469 | I26: ='3'!I27+'3'!I37+'3'!I44+'4'!I22+'4'!I29+'4'!I34+'4'!I41+'5'!I18+'5'!I27+'5'!I35+'5'!I44+'6'!I24+'6'!I32+'6'!I41 -> 561.68 | J26: TOTAL OF REVENUE SECTION | M26: ='3'!M27+'3'!M37+'3'!M44+'4'!M22+'4'!M29+'4'!M34+'4'!M41+'5'!M18+'5'!M27+'5'!M35+'5'!M44+'6'!M24+'6'!M32+'6'!M41 -> 520.55 | N26: ='3'!N27+'3'!N37+'3'!N44+'4'!N22+'4'!N29+'4'!N34+'4'!N41+'5'!N18+'5'!N27+'5'!N35+'5'!N44+'6'!N24+'6'!N32+'6'!N41 -> 150 | O26: ='3'!O27+'3'!O37+'3'!O44+'4'!O22+'4'!O29+'4'!O34+'4'!O41+'5'!O18+'5'!O27+'5'!O35+'5'!O44+'6'!O24+'6'!O32+'6'!O41 -> 0 | P26: =SUM(M26:O26) -> 670.55
A27: =A17 -> 0 | B27: =B17 -> 0 | C27: 0 | D27: =D17 -> 0 | E27: 0 | F27: 0 | G27: =G17 -> 0 | H27: 25.5 | I27: 0 | J27: TOTAL OF CAPITAL SECTION | M27: =M17 -> 0 | N27: =N17 -> 0 | O27: 0 | P27: =P17+P24 -> 0
A28: =A26+A27 -> 405.97 | B28: =B26+B27 -> 2094.33 | C28: 10.15 | D28: =D26+D27 -> 487.2 | E28: 1810 | F28: 126.53 | G28: 505.05 | H28: 2494.5 | I28: 561.68 | J28: TOTAL OF DEMAND NO. 35 | M28: =M26+M27 -> 520.55 | N28: =N26+N27 -> 150 | O28: =O26+O27 -> 0 | P28: =P26+P27 -> 670.55
H29: 25.5 | J29: Works transferred to PWD
A30: =A28-A29 -> 405.97 | B30: =B28-B29 -> 2094.33 | C30: 10.15 | D30: 487.2 | E30: 1810 | F30: 126.53 | G30: 505.05 | H30: 2469 | I30: 561.68 | J30: NETTOTAL OF DEMAND NO. 35 (Voted) | M30: =M28-M29 -> 520.55 | N30: =N28-N29 -> 150 | O30: =O28-O29 -> 0 | P30: =P28-P29 -> 670.55
